fUSD/lending_fUSD_20250309
["ID","MTS","AMOUNT","RATE_DAILY","PERIOD"]
[355741433,1741524110720,-217.33729414,0.000475,120]
[355741434,1741524110749,-1908.96222985,0.000475,90]
[355741435,1741524110779,-2000000.0,0.000475,120]
[355741436,1741524110810,-150.0,0.00047601,120]
[355741437,1741524110838,-200.0,0.00047644,120]
[355741438,1741524110867,-2000.0,0.000477,120]
[355741439,1741524110897,-2000.0,0.000477,120]
[355741440,1741524110926,-317.0,0.000477,120]
[355741441,1741524110954,-2000000.0,0.0004775,120]
[355741442,1741524110982,-1127.87,0.00047841,120]
[355741443,1741524111011,-5000.0,0.0004796,30]
[355741444,1741524111041,-1000.0,0.00047999,120]
[355741445,1741524111071,-100000.0,0.00048,48]
[355741446,1741524111101,-500.0,0.00048,120]
[355741447,1741524111129,-2000.0,0.00048,120]
[355741448,1741524111157,-126581.44940466,0.00048,120]
[355741449,1741524111190,-788422.4722436,0.00048,120]
[355741450,1741524115478,-14923.95,0.0004598,120]
[355741451,1741524115506,-211577.5277564,0.00048,120]
[355741452,1741524115532,-2000000.0,0.00048,120]
[355741453,1741524115557,-168329.83676071,0.00048,120]
[355741454,1741524115582,-40000.0,0.00048,120]
[355741455,1741524115607,-83049.98942447,0.00048,120]
[355741456,1741524115635,-58834.77235778,0.00048,120]
[355741457,1741524115660,-158.0,0.00048,120]
[355741458,1741524115687,-3453.94521679,0.00048,120]
[355741459,1741524115713,-4709.82212957,0.00048,120]
[355741460,1741524115738,-150.0,0.00048,30]
[355741461,1741524115764,-3952.04602157,0.00048053,120]
[355741462,1741524115791,-2000000.0,0.0004825,120]
[355741463,1741524115818,-200.0,0.00048372,120]
[355741464,1741524115845,-5000.0,0.0004844,30]
[355741465,1741524115872,-2000000.0,0.000485,120]
[355741466,1741524115900,-11940.0,0.000486,120]
[355741467,1741524115927,-8551.6257,0.0004865,30]
[355741468,1741524115953,-5000.0,0.0004869,30]
[355741469,1741524115980,-2000000.0,0.0004875,120]
[355741470,1741524116008,-5000.0,0.0004875,30]
[355741471,1741524116034,-4875.32786129,0.000488,120]
[355741472,1741524116060,-30966.84830798,0.000488,120]
[355741473,1741524116086,-1010.55348162,0.000488,120]
[355741474,1741524116112,-10300.30846356,0.000488,120]
[355741475,1741524116139,-2475.15058851,0.000488,120]
[355741476,1741524116166,-6536.0,0.00048813,117]
[355741477,1741524116193,-89000.0,0.0004887,120]
[355741478,1741524116219,-240.28392634,0.0004888,120]
[355741479,1741524116245,-1167.08912482,0.000489,120]
[355741480,1741524116271,-152.0,0.00048904,90]
[355741481,1741524116297,-2619.24228574,0.00048998,120]
[355741482,1741524116324,-1000.0,0.00048999,120]
[355741483,1741524116351,-100000.0,0.00049,49]
[355741484,1741524116376,-751.42247808,0.00049,30]
[355741485,1741524116401,-752.95205566,0.00049,120]
[355741486,1741524116427,-160.0,0.00049,120]
[355741487,1741524116452,-10000.0,0.00049,120]
[355741488,1741524116478,-113161.30605911,0.00049,120]
[355741489,1741524130912,-151.0,0.00025834,30]
[355741490,1741524130940,-156.587,0.00026382,30]
[355741491,1741524130968,-162.380719,0.0002693,30]
[355741492,1741524131002,-168.3888056,0.00027478,30]
[355741493,1741524131030,-212.23002075,0.00028026,30]
[355741494,1741524131067,-433.46611971,0.00038766,30]
[355741495,1741524131094,-433.46611971,0.00039088,30]
[355741496,1741524131120,-433.46611971,0.00039228,30]
[355741497,1741524131149,-433.46611971,0.0003972,30]
[355741498,1741524131176,-433.46611971,0.00039918,30]
[355741499,1741524131204,-433.46611971,0.00040142,30]
[355741500,1741524131230,-433.46611971,0.00040388,30]
[355741501,1741524131262,-15125.21,0.00048,120]
[355741502,1741524131287,-441.02,0.000485,120]
[355741503,1741524131313,-886838.69394089,0.00049,120]
[355741504,1741524131339,-52359.44168498,0.00049,30]
[355741505,1741524131365,-2000000.0,0.00049,120]
[355741506,1741524131390,-51890.29350436,0.00049,120]
[355741507,1741524131418,-21407.00938322,0.00049,120]
[355741508,1741524131444,-150.0,0.00049,30]
[355741509,1741524131470,-200.0,0.000491,120]
[355741510,1741524131497,-2000000.0,0.0004925,120]
[355741511,1741524131523,-181.28128967,0.00049315,120]
[355741512,1741524131578,433.46611971,0.00040767,30]
[355741513,1741524131752,433.46611971,0.0004106,30]
[355741514,1741524131862,433.46611971,0.0004127,30]
[355741515,1741524132206,433.46611971,0.00041414,30]
[355741516,1741524132635,433.46611971,0.00041771,30]
[355741517,1741524133034,433.46611971,0.00042139,30]
[355741518,1741524133412,433.46611971,0.00042196,30]
[355741519,1741524133723,433.46611971,0.0004251,30]
[355741520,1741524134021,433.46611971,0.00042895,30]
[355741521,1741524134573,433.46611971,0.00043039,30]
[355741522,1741524135924,433.46611971,0.00043561,30]
[355741523,1741524136264,433.46611971,0.00043626,30]
[355741524,1741524136580,433.46611971,0.00044061,30]
[355741525,1741524136965,433.46611971,0.00044334,30]
[355741526,1741524137318,433.46611971,0.00044494,30]
[355741527,1741524137391,155.393,0.00044061,30]
[355741528,1741524138477,433.46611971,0.00044676,30]
[355741529,1741524138738,153.0,0.00049,90]
[355741530,1741524138854,433.46611992,0.0004497,30]
[355741531,1741524139643,2140.4368922,0.000448,30]
[355741532,1741524146310,15221.59,0.00048315,120]
[355741533,1741524164045,195.5,0.00025834,30]
[355742617,1741524409295,444.0,0.00025834,120]
[355742618,1741524420031,1000.0,0.00025834,60]
[355742619,1741524424978,1000.0,0.00025834,30]
[355742625,1741524443763,1000.0,0.00025834,30]
[355742635,1741524456635,1000.0,0.00025834,60]
[355742636,1741524469705,1000.0,0.00025834,60]
[355742637,1741524482947,1000.0,0.00025834,120]
[355742638,1741524484775,200.0,7.857e-05,2]
[355742639,1741524495944,1000.0,0.00025834,60]
[355742640,1741524509191,1000.0,0.00025834,60]
[355742642,1741524522041,1000.0,0.00025834,120]
[355742643,1741524534883,1000.0,0.00026618,60]
[355742644,1741524547390,1812.67301527,0.00026618,60]
[355742645,1741524547717,1000.0,0.00026618,60]
[355742830,1741524553999,-300.0,8.129e-05,2]
[355742831,1741524554029,-4612.87762845,8.13e-05,2]
[355742832,1741524554070,-4912.87762845,8.13e-05,2]
[355742833,1741524554109,-475.7181619,8.13e-05,2]
[355742834,1741524554139,-2013.05,8.13e-05,2]
[355742835,1741524554172,-156.01,8.135e-05,2]
[355742836,1741524554202,-416.32,8.135e-05,2]
[355742837,1741524554233,-156.01,8.179e-05,2]
[355742838,1741524554262,-1348.9,8.194e-05,2]
[355742839,1741524554291,-346.86946655,8.219e-05,2]
[355742840,1741524554334,-1319.33053345,8.219e-05,2]
[355742841,1741524554363,-250.0,8.219e-05,2]
[355742842,1741524554398,-1000.0,8.219e-05,2]
[355742843,1741524554430,-156.01,8.223e-05,2]
[355742844,1741524554460,-552.37,8.226e-05,2]
[355742845,1741524554489,-156.01,8.268e-05,2]
[355742846,1741524554519,-44.60039666,8.312e-05,2]
[355742851,1741524560587,1000.0,0.00026618,30]
[355742862,1741524573378,1000.0,0.00026618,60]
[355742890,1741524632004,-276.18,8.219e-05,2]
[355742891,1741524632014,-111.40960334,8.312e-05,2]
[355742892,1741524632023,-156.01,8.356e-05,2]
[355742893,1741524632033,-150.99,8.356e-05,2]
[355742894,1741524632043,-606.41039666,8.356e-05,2]
[355742895,1741524632055,-399.08199603,8.356e-05,2]
[355742896,1741524632066,-1227.89760731,8.356e-05,2]
[355742897,1741524632077,-150.99,8.356e-05,2]
[355742898,1741524632086,-299.99,8.356e-05,2]
[355742899,1741524632095,-4232.39,8.356e-05,2]
[355742900,1741524632105,-1177.26,8.356e-05,2]
[355742901,1741524632114,-882.38,8.384e-05,2]
[355742902,1741524632123,-1679.67,8.384e-05,2]
[355742903,1741524632132,-312.61,8.384e-05,2]
[355742904,1741524632144,-156.01,8.401e-05,2]
[355742905,1741524632155,-156.01,8.445e-05,2]
[355742906,1741524632164,-156.01,8.49e-05,2]
[355742907,1741524632174,-213.28,8.521e-05,2]
[355742908,1741524632183,-1979.96,8.521e-05,2]
[355742909,1741524632192,-437.78,8.521e-05,2]
[355742910,1741524632201,-300.0,8.521e-05,2]
[355742911,1741524632211,-156.01,8.534e-05,2]
[355742912,1741524632220,-156.01,8.578e-05,2]
[355742913,1741524632230,-156.01,8.623e-05,2]
[355742914,1741524632239,-193.99035928,8.99e-05,2]
[355742915,1741524632249,-1944.35,8.999e-05,2]
[355742916,1741524632259,-173.632,8.999e-05,2]
[355742917,1741524632268,-150.0,8.999e-05,2]
[355742918,1741524632277,-22688.7271168,9e-05,2]
[355742919,1741524632288,-36409.78902569,9e-05,2]
[355742920,1741524632299,-1482.5487398,9e-05,2]
[355742921,1741524632311,-13255.7632894,9e-05,2]
[355742922,1741524632329,-2421.08916818,9e-05,2]
[355742923,1741524632345,-448.87290307,9e-05,2]
[355742924,1741524632365,-666.80245366,9e-05,2]
[355742925,1741524632374,-344.75,9e-05,2]
[355742926,1741524632384,-171.31644757,9.001e-05,2]
[355742927,1741524632395,-71.58115243,9.001e-05,2]
[355742929,1741524632406,-534.97600295,9.002e-05,2]
[355742931,1741524632417,-576.90129705,9.002e-05,2]
[355742932,1741524632426,-500.39478856,9.083e-05,2]
[355742933,1741524632435,-788.39640734,9.1e-05,2]
[355742934,1741524632447,-410.67359266,9.1e-05,2]
[355742935,1741524632456,-140.32348435,9.1e-05,2]
[355742939,1741524632577,-562.81945346,9.1e-05,2]
[355742940,1741524632593,-322.78,9.1e-05,2]
[355742941,1741524632604,-512.60815324,9.1e-05,2]
[355742963,1741524637961,-535.15890895,9.1e-05,2]
[355742964,1741524637971,-472.52125219,9.1e-05,2]
[355742965,1741524637981,-1058.5,9.1e-05,2]
[355742966,1741524637991,-500.0,9.1e-05,2]
[355742967,1741524638001,-700.81983886,9.1e-05,2]
[355742968,1741524638013,-1072.23016114,9.1e-05,2]
[355742969,1741524638023,-284.31983886,9.1e-05,2]
[355742970,1741524638035,-590.87016114,9.1e-05,2]
[355742971,1741524638044,-2015.79,9.1e-05,2]
[355742972,1741524638054,-500.0,9.1e-05,2]
[355742973,1741524638063,-500.0,9.1e-05,2]
[355742974,1741524638073,-1090.15,9.1e-05,2]
[355742975,1741524638083,-500.0,9.1e-05,2]
[355742976,1741524638092,-936.83,9.1e-05,2]
[355742977,1741524638102,-547.49,9.1e-05,2]
[355742978,1741524638111,-500.0,9.1e-05,2]
[355742979,1741524638121,-762.55,9.1e-05,2]
[355742980,1741524638130,-535.72,9.1e-05,2]
[355742981,1741524638140,-8573.91310142,9.101e-05,2]
[355742982,1741524638149,-8.82811577,9.101e-05,2]
[355742983,1741524638193,-491.17188423,9.101e-05,2]
[355742984,1741524638203,-500.0,9.101e-05,2]
[355742985,1741524638213,-496.83226134,9.101e-05,2]
[355742986,1741524638225,-3.16773866,9.101e-05,2]
[355742987,1741524638234,-500.0,9.101e-05,2]
[355742988,1741524638244,-385.63166446,9.101e-05,2]
[355742989,1741524638255,-114.36833554,9.101e-05,2]
[355742990,1741524638265,-500.0,9.101e-05,2]
[355742991,1741524638275,-500.0,9.101e-05,2]
[355742992,1741524638284,-500.0,9.101e-05,2]
[355742993,1741524638294,-500.0,9.101e-05,2]
[355742994,1741524638303,-500.0,9.101e-05,2]
[355742995,1741524638312,-500.0,9.101e-05,2]
[355742996,1741524638322,-500.0,9.101e-05,2]
[355742997,1741524638332,-500.0,9.101e-05,2]
[355742998,1741524638342,-500.0,9.101e-05,2]
[355742999,1741524638351,-500.0,9.101e-05,2]
[355743000,1741524638361,-500.0,9.101e-05,2]
[355743001,1741524638371,-500.0,9.101e-05,2]
[355743002,1741524638380,-500.0,9.101e-05,2]
[355743003,1741524638390,-500.0,9.101e-05,2]
[355743005,1741524638400,-500.0,9.101e-05,2]
[355743007,1741524638412,-500.0,9.101e-05,2]
[355743008,1741524638422,-500.0,9.101e-05,2]
[355743009,1741524638432,-500.0,9.101e-05,2]
[355743010,1741524638442,-652.76,9.101e-05,2]
[355743011,1741524638452,-500.0,9.101e-05,2]
[355743012,1741524638462,-500.0,9.101e-05,2]
[355743013,1741524638471,-126.88713323,9.101e-05,2]
[355743014,1741524638501,-373.11286677,9.101e-05,2]
[355743015,1741524638512,-582.81,9.101e-05,2]
[355743016,1741524638521,-500.0,9.101e-05,2]
[355743017,1741524638531,-500.0,9.101e-05,2]
[355743018,1741524638540,-500.0,9.101e-05,2]
[355743019,1741524638550,-838.33,9.101e-05,2]
[355743020,1741524638560,-500.0,9.101e-05,2]
[355743021,1741524638568,-500.0,9.101e-05,2]
[355743022,1741524638576,-500.0,9.101e-05,2]
[355743023,1741524638586,-500.0,9.101e-05,2]
[355743024,1741524638595,-500.0,9.101e-05,2]
[355743025,1741524638604,-500.0,9.101e-05,2]
[355743026,1741524638613,-683.43,9.101e-05,2]
[355743027,1741524638622,-500.0,9.101e-05,2]
[355743028,1741524638632,-500.0,9.101e-05,2]
[355743029,1741524638641,-500.0,9.101e-05,2]
[355743030,1741524638651,-500.0,9.101e-05,2]
[355743031,1741524638663,-500.0,9.101e-05,2]
[355743032,1741524638673,-500.0,9.101e-05,2]
[355743033,1741524638682,-713.99,9.101e-05,2]
[355743034,1741524638692,-569.53,9.101e-05,2]
[355743035,1741524638702,-500.0,9.101e-05,2]
[355743036,1741524638711,-500.0,9.101e-05,2]
[355743037,1741524638720,-618.5,9.101e-05,2]
[355743038,1741524638730,-500.0,9.101e-05,2]
[355743039,1741524638739,-500.0,9.101e-05,2]
[355743040,1741524638749,-569.51,9.101e-05,2]
[355743041,1741524638760,-533.25,9.101e-05,2]
[355743042,1741524638769,-500.0,9.101e-05,2]
[355743043,1741524638778,-500.0,9.101e-05,2]
[355743044,1741524638788,-500.0,9.101e-05,2]
[355743045,1741524638799,-500.0,9.101e-05,2]
[355743046,1741524638809,-660.18,9.101e-05,2]
[355743047,1741524638818,-243.53690715,9.101e-05,2]
[355743062,1741524640001,-296.20309285,9.101e-05,2]
[355743063,1741524640012,-516.04,9.101e-05,2]
[355743064,1741524640021,-500.0,9.101e-05,2]
[355743065,1741524640030,-191.77818631,9.101e-05,2]
[355743066,1741524640112,-403.40181369,9.101e-05,2]
[355743067,1741524640123,-519.72,9.101e-05,2]
[355743068,1741524640132,-500.0,9.101e-05,2]
[355743069,1741524640143,-500.0,9.101e-05,2]
[355743070,1741524640152,-562.22,9.101e-05,2]
[355743071,1741524640162,-394.60866337,9.101e-05,2]
[355743072,1741524640171,-500.0,9.101e-05,2]
[355743073,1741524640181,-500.0,9.101e-05,2]
[355743074,1741524640191,-500.0,9.101e-05,2]
[355743075,1741524640200,-500.0,9.101e-05,2]
[355743076,1741524640211,-377.69179082,9.101e-05,2]
[355743077,1741524640220,-500.0,9.101e-05,2]
[355743078,1741524640230,-500.0,9.101e-05,2]
[355743079,1741524640240,-1129.44,9.101e-05,2]
[355743080,1741524640249,-477.05007333,9.101e-05,2]
[355743081,1741524640278,-1990.37992667,9.101e-05,2]
[355743082,1741524640287,-500.0,9.101e-05,2]
[355743083,1741524640296,-500.0,9.101e-05,2]
[355743084,1741524640306,-157.07039666,9.101e-05,2]
[355743085,1741524640315,-500.0,9.101e-05,2]
[355743086,1741524640325,-500.0,9.101e-05,2]
[355743087,1741524640334,-1249.77,9.101e-05,2]
[355743088,1741524640344,-500.0,9.101e-05,2]
[355743089,1741524640354,-500.0,9.101e-05,2]
[355743090,1741524640363,-500.0,9.101e-05,2]
[355743091,1741524640373,-1284.8,9.101e-05,2]
[355743092,1741524640383,-1103.93,9.101e-05,2]
[355743093,1741524640393,-500.0,9.101e-05,2]
[355743094,1741524640403,-500.0,9.101e-05,2]
[355743095,1741524640414,-509.26629824,9.101e-05,2]
[355743096,1741524640423,-1503.54,9.101e-05,2]
[355743097,1741524640434,-500.0,9.101e-05,2]
[355743098,1741524640444,-500.0,9.101e-05,2]
[355743099,1741524640453,-500.0,9.101e-05,2]
[355743100,1741524640463,-537.0734918,9.101e-05,2]
[355743101,1741524640472,-500.0,9.101e-05,2]
[355743102,1741524640481,-500.0,9.101e-05,2]
[355743103,1741524640491,-500.0,9.101e-05,2]
[355743104,1741524640500,-243.200957,9.101e-05,2]
[355743105,1741524640510,-500.0,9.101e-05,2]
[355743107,1741524640519,-638.16,9.101e-05,2]
[355743109,1741524640532,-500.0,9.101e-05,2]
[355743111,1741524640544,-1687.96,9.101e-05,2]
[355743113,1741524640556,-500.0,9.101e-05,2]
[355743116,1741524640570,-734.3,9.101e-05,2]
[355743118,1741524640582,-500.0,9.101e-05,2]
[355743120,1741524640594,-1519.99,9.101e-05,2]
[355743122,1741524640604,-1693.86,9.101e-05,2]
[355743124,1741524640615,-500.0,9.101e-05,2]
[355743126,1741524640626,-523.42,9.101e-05,2]
[355743128,1741524640637,-500.0,9.101e-05,2]
[355743131,1741524640650,-500.0,9.101e-05,2]
[355743133,1741524640663,-685.52,9.101e-05,2]
[355743135,1741524640674,-310.781839,9.101e-05,2]
[355743137,1741524640686,-500.0,9.101e-05,2]
[355743139,1741524640698,-2672.81,9.101e-05,2]
[355743141,1741524640710,-500.0,9.101e-05,2]
[355743142,1741524640722,-500.0,9.101e-05,2]
[355743143,1741524640735,-500.0,9.101e-05,2]
[355743144,1741524640746,-500.0,9.101e-05,2]
[355743145,1741524640758,-500.0,9.101e-05,2]
[355743146,1741524640769,-1039.32,9.101e-05,2]
[355743147,1741524640780,-500.0,9.101e-05,2]
[355743148,1741524640790,-500.0,9.101e-05,2]
[355743149,1741524640802,-500.0,9.101e-05,2]
[355743150,1741524640818,-500.0,9.101e-05,2]
[355743151,1741524640831,-500.0,9.101e-05,2]
[355743152,1741524640842,-500.0,9.101e-05,2]
[355743153,1741524640854,-500.0,9.101e-05,2]
[355743154,1741524640866,-500.0,9.101e-05,2]
[355743155,1741524640878,-2293.2,9.101e-05,2]
[355743156,1741524640890,-377.42179147,9.101e-05,2]
[355743157,1741524640903,-681.51,9.101e-05,2]
[355743158,1741524640918,-621.32,9.101e-05,2]
[355743159,1741524640931,-805.94,9.101e-05,2]
[355743160,1741524640943,-500.0,9.101e-05,2]
[355743161,1741524640956,-771.8,9.101e-05,2]
[355743162,1741524640968,-1149.52,9.101e-05,2]
[355743163,1741524640981,-500.0,9.101e-05,2]
[355743164,1741524640992,-1460.84,9.101e-05,2]
[355743165,1741524641003,-500.0,9.101e-05,2]
[355743166,1741524641015,-500.0,9.101e-05,2]
[355743167,1741524641028,-500.0,9.101e-05,2]
[355743168,1741524641040,-604.61940992,9.101e-05,2]
[355743169,1741524641054,-500.0,9.101e-05,2]
[355743170,1741524641065,-843.1,9.101e-05,2]
[355743171,1741524641077,-500.0,9.101e-05,2]
[355743172,1741524641089,-500.0,9.101e-05,2]
[355743173,1741524641101,-537.28,9.101e-05,2]
[355743174,1741524641112,-434.46479355,9.101e-05,2]
[355743175,1741524641128,-1777.97,9.101e-05,2]
[355743176,1741524641140,-952.72,9.101e-05,2]
[355743177,1741524641152,-291.57483946,9.101e-05,2]
[355743178,1741524641165,-500.0,9.101e-05,2]
[355743179,1741524641177,-623.37,9.101e-05,2]
[355743180,1741524641188,-1106.7,9.101e-05,2]
[355743181,1741524641200,-547.35,9.101e-05,2]
[355743182,1741524641210,-950.47,9.101e-05,2]
[355743183,1741524641221,-500.0,9.101e-05,2]
[355743184,1741524641232,-634.88,9.101e-05,2]
[355743185,1741524641244,-1994.97,9.101e-05,2]
[355743186,1741524641257,-665.07,9.101e-05,2]
[355743187,1741524641270,-500.0,9.101e-05,2]
[355743188,1741524641280,-958.18,9.101e-05,2]
[355743189,1741524641291,-500.0,9.101e-05,2]
[355743190,1741524641301,-3155.69,9.101e-05,2]
[355743191,1741524641311,-1496.05,9.101e-05,2]
[355743192,1741524641321,-504.58,9.101e-05,2]
[355743193,1741524641332,-565.93,9.101e-05,2]
[355743194,1741524641350,-763.12,9.101e-05,2]
[355743195,1741524641362,-519.69,9.101e-05,2]
[355743196,1741524641376,-500.0,9.101e-05,2]
[355743197,1741524641387,-500.0,9.101e-05,2]
[355743198,1741524641397,-755.79,9.101e-05,2]
[355743199,1741524641408,-1437.88,9.101e-05,2]
[355743200,1741524641418,-500.0,9.101e-05,2]
[355743201,1741524641429,-1041.07,9.101e-05,2]
[355743202,1741524641439,-500.0,9.101e-05,2]
[355743203,1741524641450,-997.96,9.101e-05,2]
[355743204,1741524641462,-500.0,9.101e-05,2]
[355743205,1741524641473,-500.0,9.101e-05,2]
[355743206,1741524641484,-550.64,9.101e-05,2]
[355743207,1741524641495,-679.3,9.101e-05,2]
[355743208,1741524641507,-500.0,9.101e-05,2]
[355743209,1741524641524,-1619.46,9.101e-05,2]
[355743210,1741524641535,-2542.92,9.101e-05,2]
[355743211,1741524641547,-1565.92,9.101e-05,2]
[355743212,1741524641559,-539.47,9.101e-05,2]
[355743213,1741524641571,-500.0,9.101e-05,2]
[355743214,1741524641583,-1612.75,9.101e-05,2]
[355743215,1741524641594,-8096.83,9.101e-05,2]
[355743216,1741524641605,-1014.26,9.101e-05,2]
[355743217,1741524641618,-500.0,9.101e-05,2]
[355743218,1741524641630,-500.0,9.101e-05,2]
[355743219,1741524641640,-500.0,9.101e-05,2]
[355743220,1741524641652,-866.25,9.101e-05,2]
[355743221,1741524641663,-1061.19,9.101e-05,2]
[355743222,1741524641675,-622.64,9.101e-05,2]
[355743223,1741524641687,-500.0,9.101e-05,2]
[355743224,1741524641698,-806.8,9.101e-05,2]
[355743225,1741524641708,-500.0,9.101e-05,2]
[355743226,1741524641720,-247.68300942,9.101e-05,2]
[355743227,1741524641735,-252.31699058,9.101e-05,2]
[355743228,1741524641746,-586.23,9.101e-05,2]
[355743229,1741524641756,-816.04,9.101e-05,2]
[355743230,1741524641767,-132.97106104,9.101e-05,2]
[355743231,1741524641780,-378.20893896,9.101e-05,2]
[355743232,1741524641791,-500.0,9.101e-05,2]
[355743233,1741524641803,-500.0,9.101e-05,2]
[355743234,1741524641816,-500.0,9.101e-05,2]
[355743235,1741524641827,-500.0,9.101e-05,2]
[355743236,1741524641838,-729.71106104,9.101e-05,2]
[355743237,1741524641859,-1161.33140907,9.101e-05,2]
[355743238,1741524641872,-2559.32752989,9.101e-05,2]
[355743239,1741524641883,-500.0,9.101e-05,2]
[355743240,1741524641894,-7534.74,9.101e-05,2]
[355743241,1741524641904,-174.86197447,9.101e-05,2]
[355743242,1741524641918,-658.63802553,9.101e-05,2]
[355743243,1741524641929,-500.0,9.101e-05,2]
[355743244,1741524641940,-500.0,9.101e-05,2]
[355743245,1741524641951,-3435.46,9.101e-05,2]
[355743246,1741524641962,-839.39,9.101e-05,2]
[355743247,1741524641974,-2603.91,9.101e-05,2]
[355743248,1741524641985,-151.9281051,9.102e-05,2]
[355743249,1741524641995,-500.0,9.102e-05,2]
[355743250,1741524642006,-500.0,9.102e-05,2]
[355743251,1741524642017,-500.0,9.102e-05,2]
[355743252,1741524642028,-500.0,9.102e-05,2]
[355743253,1741524642039,-321.16,9.102e-05,2]
[355743254,1741524642050,-500.0,9.102e-05,2]
[355743255,1741524642061,-500.0,9.102e-05,2]
[355743256,1741524642072,-500.0,9.102e-05,2]
[355743257,1741524642083,-500.0,9.102e-05,2]
[355743258,1741524642093,-500.0,9.102e-05,2]
[355743259,1741524642104,-500.0,9.102e-05,2]
[355743260,1741524642114,-520.69687891,9.102e-05,2]
[355743261,1741524642125,-500.0,9.102e-05,2]
[355743262,1741524642136,-500.0,9.102e-05,2]
[355743263,1741524642147,-500.0,9.102e-05,2]
[355743264,1741524642159,-500.0,9.102e-05,2]
[355743265,1741524642171,-500.0,9.102e-05,2]
[355743266,1741524642182,-500.0,9.102e-05,2]
[355743267,1741524642195,-500.0,9.102e-05,2]
[355743268,1741524642205,-500.0,9.102e-05,2]
[355743269,1741524642216,-500.0,9.102e-05,2]
[355743270,1741524642227,-500.0,9.102e-05,2]
[355743271,1741524642237,-500.0,9.102e-05,2]
[355743272,1741524642248,-500.0,9.102e-05,2]
[355743273,1741524642259,-500.0,9.102e-05,2]
[355743274,1741524642270,-500.0,9.102e-05,2]
[355743275,1741524642281,-500.0,9.102e-05,2]
[355743276,1741524642291,-500.0,9.102e-05,2]
[355743277,1741524642302,-430.03173527,9.102e-05,2]
[355743278,1741524642312,-176.97,9.102e-05,2]
[355743279,1741524642323,-500.0,9.102e-05,2]
[355743280,1741524642335,-500.0,9.102e-05,2]
[355743281,1741524642346,-500.0,9.102e-05,2]
[355743282,1741524642359,-500.0,9.102e-05,2]
[355743283,1741524642371,-500.0,9.102e-05,2]
[355743284,1741524642382,-500.0,9.102e-05,2]
[355743285,1741524642394,-160.40325274,9.102e-05,2]
[355743286,1741524642405,-500.0,9.102e-05,2]
[355743287,1741524642416,-500.0,9.102e-05,2]
[355743288,1741524642427,-500.0,9.102e-05,2]
[355743289,1741524642439,-355.90754729,9.102e-05,2]
[355743290,1741524642450,-500.0,9.102e-05,2]
[355743291,1741524642461,-510.73,9.102e-05,2]
[355743292,1741524642474,-500.0,9.102e-05,2]
[355743293,1741524642487,-500.0,9.102e-05,2]
[355743294,1741524642497,-130.85040836,9.102e-05,2]
[355743324,1741524645103,-511.95302367,9.101e-05,2]
[355743325,1741524645113,-382.72959164,9.102e-05,2]
[355743326,1741524645123,-346.3034972,9.102e-05,2]
[355743327,1741524645133,-500.0,9.102e-05,2]
[355743328,1741524645142,-500.0,9.102e-05,2]
[355743329,1741524645152,-500.0,9.102e-05,2]
[355743330,1741524645163,-500.0,9.102e-05,2]
[355743331,1741524645174,-584.02,9.102e-05,2]
[355743332,1741524645184,-500.0,9.102e-05,2]
[355743333,1741524645195,-500.0,9.102e-05,2]
[355743334,1741524645205,-500.0,9.102e-05,2]
[355743335,1741524645215,-500.0,9.102e-05,2]
[355743336,1741524645224,-500.0,9.102e-05,2]
[355743337,1741524645234,-500.0,9.102e-05,2]
[355743338,1741524645243,-150.27,9.102e-05,2]
[355743339,1741524645253,-500.0,9.102e-05,2]
[355743340,1741524645263,-500.0,9.102e-05,2]
[355743341,1741524645272,-500.0,9.102e-05,2]
[355743342,1741524645282,-500.0,9.102e-05,2]
[355743343,1741524645291,-500.0,9.102e-05,2]
[355743344,1741524645301,-500.0,9.102e-05,2]
[355743345,1741524645310,-549.95962267,9.102e-05,2]